[Event "Late-Titled-Tuesday-Blitz-October-03-2023"]
[Site "Chess.com"]
[Date "2023.10.03"]
[Round "5"]
[White "ferrufino64"]
[Black "leoduarte"]
[Result "0-1"]
[WhiteElo "2229"]
[BlackElo "2441"]
[TimeControl "180+1"]
[EndTime "14:54:00 PDT"]
[Termination "leoduarte won by resignation"]

1. e4 {[%clk 0:03:00.1]} 1... c5 {[%clk 0:03:00.1]} 2. Nf3 {[%clk 0:02:58.5]}
2... e6 {[%clk 0:03:00.2]} 3. d4 {[%clk 0:02:57.2]} 3... cxd4 {[%clk 0:03:01.1]}
4. Nxd4 {[%clk 0:02:58]} 4... Nf6 {[%clk 0:03:01.6]} 5. Nc3 {[%clk 0:02:58]}
5... Nc6 {[%clk 0:03:02.3]} 6. a3 {[%clk 0:02:58]} 6... d5 {[%clk 0:03:00.3]} 7.
Bb5 {[%clk 0:02:56.7]} 7... Bd7 {[%clk 0:02:58.6]} 8. exd5 {[%clk 0:02:56.9]}
8... exd5 {[%clk 0:02:59.3]} 9. O-O {[%clk 0:02:57.1]} 9... Be7 {[%clk
0:02:59.7]} 10. Be2 {[%clk 0:02:51.9]} 10... O-O {[%clk 0:02:57.2]} 11. Bf3
{[%clk 0:02:52.1]} 11... Be6 {[%clk 0:02:42.3]} 12. Re1 {[%clk 0:02:49.5]} 12...
Qd7 {[%clk 0:02:42.1]} 13. Bf4 {[%clk 0:02:45.1]} 13... Nxd4 {[%clk 0:02:30.8]}
14. Qxd4 {[%clk 0:02:44.8]} 14... a6 {[%clk 0:02:31.5]} 15. Rad1 {[%clk
0:02:43.9]} 15... Rfd8 {[%clk 0:02:27.6]} 16. h3 {[%clk 0:02:41]} 16... Rac8
{[%clk 0:02:27.1]} 17. Be5 {[%clk 0:01:52.4]} 17... Rc4 {[%clk 0:02:07.1]} 18.
Qd2 {[%clk 0:01:44]} 18... h6 {[%clk 0:02:03.9]} 19. Ne2 {[%clk 0:01:33.5]}
19... Qc8 {[%clk 0:01:22.3]} 20. c3 {[%clk 0:01:33]} 20... Ne4 {[%clk
0:01:22.2]} 21. Bxe4 {[%clk 0:01:29.6]} 21... dxe4 {[%clk 0:01:22.1]} 22. Qe3
{[%clk 0:01:20.7]} 22... f5 {[%clk 0:00:56.4]} 23. Qg3 {[%clk 0:01:15.7]} 23...
Bf8 {[%clk 0:00:51.7]} 24. Nf4 {[%clk 0:01:11.5]} 24... Bf7 {[%clk 0:00:47.9]}
25. Ng6 {[%clk 0:00:56.5]} 25... Bxg6 {[%clk 0:00:32]} 26. Qxg6 {[%clk
0:00:56.7]} 26... Rxd1 {[%clk 0:00:31.9]} 27. Rxd1 {[%clk 0:00:56.8]} 27... Rc6
{[%clk 0:00:32.4]} 28. Qg3 {[%clk 0:00:52.9]} 28... Qe8 {[%clk 0:00:32.3]} 29.
Bd4 {[%clk 0:00:50.2]} 29... Qf7 {[%clk 0:00:25.8]} 30. f3 {[%clk 0:00:48.7]}
30... f4 {[%clk 0:00:20.2]} 31. Qe1 {[%clk 0:00:39.7]} 31... e3 {[%clk
0:00:20.1]} 32. Qe2 {[%clk 0:00:39.9]} 32... Re6 {[%clk 0:00:17.6]} 33. Qd3
{[%clk 0:00:39.8]} 33... Be7 {[%clk 0:00:15.5]} 34. Re1 {[%clk 0:00:38.6]} 34...
Bh4 {[%clk 0:00:15.7]} 35. Re2 {[%clk 0:00:39]} 35... Bf2+ {[%clk 0:00:16.2]}
36. Kf1 {[%clk 0:00:38.7]} 36... Qe7 {[%clk 0:00:16.3]} 37. b4 {[%clk
0:00:35.1]} 37... b5 {[%clk 0:00:14.4]} 38. Qf5 {[%clk 0:00:31.7]} 38... Qf7
{[%clk 0:00:13.1]} 39. Qxf7+ {[%clk 0:00:28.8]} 39... Kxf7 {[%clk 0:00:14]} 40.
Rc2 {[%clk 0:00:29.3]} 40... Rc6 {[%clk 0:00:13.8]} 41. Ke2 {[%clk 0:00:29.3]}
41... Rc4 {[%clk 0:00:13.9]} 42. Kd3 {[%clk 0:00:29.2]} 42... g5 {[%clk
0:00:10.7]} 43. Ke4 {[%clk 0:00:28.5]} 43... Be1 {[%clk 0:00:10.3]} 44. Re2
{[%clk 0:00:24.8]} 44... Bxc3 {[%clk 0:00:09.9]} 0-1

[Event "Late-Titled-Tuesday-Blitz-October-03-2023"]
[Site "Chess.com"]
[Date "2023.10.03"]
[Round "5"]
[White "lluiss"]
[Black "CarlosjPineror"]
[Result "0-1"]
[WhiteElo "2162"]
[BlackElo "2506"]
[TimeControl "180+1"]
[EndTime "14:54:01 PDT"]
[Termination "CarlosjPineror won on time"]

1. e4 {[%clk 0:03:00.9]} 1... c5 {[%clk 0:02:54.8]} 2. Nf3 {[%clk 0:02:59.8]}
2... e6 {[%clk 0:02:53]} 3. d4 {[%clk 0:02:59.6]} 3... cxd4 {[%clk 0:02:50.3]}
4. Nxd4 {[%clk 0:03:00.5]} 4... a6 {[%clk 0:02:50.3]} 5. g3 {[%clk 0:03:00.1]}
5... h5 {[%clk 0:02:49.1]} 6. h4 {[%clk 0:02:48.7]} 6... Nc6 {[%clk 0:02:46.3]}
7. Bg2 {[%clk 0:02:48.5]} 7... Qc7 {[%clk 0:02:36.7]} 8. Nc3 {[%clk 0:02:46.7]}
8... Nf6 {[%clk 0:02:35.7]} 9. Nb3 {[%clk 0:02:31.9]} 9... Ng4 {[%clk
0:02:34.1]} 10. Bf4 {[%clk 0:02:28.8]} 10... d6 {[%clk 0:02:31.3]} 11. Qd2
{[%clk 0:02:24.2]} 11... Be7 {[%clk 0:02:25.8]} 12. f3 {[%clk 0:02:15.1]} 12...
Nf6 {[%clk 0:02:24.4]} 13. O-O-O {[%clk 0:02:15]} 13... Ne5 {[%clk 0:02:22.9]}
14. Bxe5 {[%clk 0:02:09.8]} 14... dxe5 {[%clk 0:02:22.1]} 15. a3 {[%clk
0:01:17.6]} 15... Bd7 {[%clk 0:02:14]} 16. Kb1 {[%clk 0:01:06.5]} 16... O-O-O
{[%clk 0:02:12.2]} 17. Qf2 {[%clk 0:01:03.4]} 17... Kb8 {[%clk 0:02:10.4]} 18.
Rd3 {[%clk 0:00:58.2]} 18... Bc6 {[%clk 0:02:01.1]} 19. Rhd1 {[%clk 0:00:58]}
19... Rxd3 {[%clk 0:01:58.6]} 20. Rxd3 {[%clk 0:00:57.9]} 20... Rd8 {[%clk
0:01:57.4]} 21. Qd2 {[%clk 0:00:57.9]} 21... Rxd3 {[%clk 0:01:56]} 22. Qxd3
{[%clk 0:00:58.8]} 22... Nd7 {[%clk 0:01:54.9]} 23. Bf1 {[%clk 0:00:53.7]} 23...
g6 {[%clk 0:01:50.3]} 24. Qc4 {[%clk 0:00:51.6]} 24... b5 {[%clk 0:01:44]} 25.
Qd3 {[%clk 0:00:43.9]} 25... Nc5 {[%clk 0:01:36.6]} 26. Nxc5 {[%clk 0:00:41.9]}
26... Bxc5 {[%clk 0:01:35.9]} 27. Nd1 {[%clk 0:00:35.8]} 27... Qd6 {[%clk
0:01:31.9]} 28. Qxd6+ {[%clk 0:00:34.9]} 28... Bxd6 {[%clk 0:01:32.8]} 29. c3
{[%clk 0:00:31.7]} 29... f5 {[%clk 0:01:31.2]} 30. Bd3 {[%clk 0:00:28.9]} 30...
Be7 {[%clk 0:01:21.8]} 31. Kc2 {[%clk 0:00:17.2]} 31... Be8 {[%clk 0:01:16.4]}
32. Nf2 {[%clk 0:00:11.5]} 32... f4 {[%clk 0:01:15.8]} 33. gxf4 {[%clk
0:00:09.1]} 33... exf4 {[%clk 0:01:15.8]} 34. Nh3 {[%clk 0:00:08.7]} 34... e5
{[%clk 0:01:14]} 35. Ng5 {[%clk 0:00:07.7]} 35... Bxg5 {[%clk 0:01:11.2]} 36.
hxg5 {[%clk 0:00:07.9]} 36... Bd7 {[%clk 0:01:04.6]} 37. Bf1 {[%clk 0:00:07.7]}
37... h4 {[%clk 0:01:02.6]} 38. Bg2 {[%clk 0:00:06.7]} 38... h3 {[%clk 0:01:00]}
39. Bh1 {[%clk 0:00:06.2]} 39... Kc7 {[%clk 0:00:51.9]} 40. b4 {[%clk
0:00:06.1]} 40... Be6 {[%clk 0:00:50]} 41. Kd2 {[%clk 0:00:05.1]} 41... Bc4
{[%clk 0:00:47.8]} 42. Ke1 {[%clk 0:00:03.4]} 42... Kb6 {[%clk 0:00:43.4]} 43.
Kf2 {[%clk 0:00:02.3]} 43... a5 {[%clk 0:00:43]} 44. Kg1 {[%clk 0:00:01.4]}
44... Be6 {[%clk 0:00:30.8]} 45. Kh2 {[%clk 0:00:01.4]} 45... a4 {[%clk
0:00:27]} 0-1

[Event "Late-Titled-Tuesday-Blitz-October-03-2023"]
[Site "Chess.com"]
[Date "2023.10.03"]
[Round "5"]
[White "Alexandr_Predke"]
[Black "Sanyura"]
[Result "1-0"]
[WhiteElo "2888"]
[BlackElo "2663"]
[TimeControl "180+1"]
[EndTime "14:54:02 PDT"]
[Termination "Alexandr_Predke won by resignation"]

1. d4 {[%clk 0:03:00.9]} 1... Nf6 {[%clk 0:02:57.7]} 2. Nf3 {[%clk 0:03:01.3]}
2... g6 {[%clk 0:02:56.4]} 3. Bg5 {[%clk 0:03:00.3]} 3... Bg7 {[%clk 0:02:56.2]}
4. Nbd2 {[%clk 0:03:00.6]} 4... d5 {[%clk 0:02:55.3]} 5. e3 {[%clk 0:03:00.8]}
5... O-O {[%clk 0:02:53.9]} 6. Be2 {[%clk 0:03:01.4]} 6... c5 {[%clk 0:02:52.3]}
7. O-O {[%clk 0:03:00.2]} 7... b6 {[%clk 0:02:45.2]} 8. Re1 {[%clk 0:02:57.5]}
8... Nc6 {[%clk 0:02:44.8]} 9. c3 {[%clk 0:02:57.4]} 9... Bb7 {[%clk 0:02:43.4]}
10. a4 {[%clk 0:02:57.6]} 10... h6 {[%clk 0:02:31.2]} 11. Bh4 {[%clk 0:02:57.1]}
11... Ne4 {[%clk 0:01:49.9]} 12. Nxe4 {[%clk 0:02:44]} 12... dxe4 {[%clk
0:01:50]} 13. Nd2 {[%clk 0:02:44.9]} 13... cxd4 {[%clk 0:01:38.8]} 14. cxd4
{[%clk 0:02:41.4]} 14... Nb4 {[%clk 0:01:33.9]} 15. Qb3 {[%clk 0:02:35.5]} 15...
a5 {[%clk 0:01:33.6]} 16. Rac1 {[%clk 0:02:33.3]} 16... Kh7 {[%clk 0:01:20.6]}
17. Red1 {[%clk 0:02:17.6]} 17... Bf6 {[%clk 0:00:23.1]} 18. Bg3 {[%clk
0:02:16.6]} 18... Rc8 {[%clk 0:00:19.8]} 19. Rc3 {[%clk 0:02:05.1]} 19... Nd3
{[%clk 0:00:18.5]} 20. Nxe4 {[%clk 0:01:53.9]} 20... Bxe4 {[%clk 0:00:15.3]} 21.
Bxd3 {[%clk 0:01:53.8]} 21... Rxc3 {[%clk 0:00:15.2]} 22. bxc3 {[%clk
0:01:50.6]} 22... Bxd3 {[%clk 0:00:15.4]} 23. Rxd3 {[%clk 0:01:50.5]} 23... Qd7
{[%clk 0:00:14.5]} 24. c4 {[%clk 0:01:48.2]} 24... Rc8 {[%clk 0:00:14]} 25. h3
{[%clk 0:01:42.1]} 25... Qc6 {[%clk 0:00:13.4]} 26. Rc3 {[%clk 0:01:41.8]} 26...
Qe4 {[%clk 0:00:11.8]} 27. Qxb6 {[%clk 0:01:34.6]} 27... h5 {[%clk 0:00:10.9]}
28. f3 {[%clk 0:00:41]} 28... Qf5 {[%clk 0:00:08.1]} 29. Qb5 {[%clk 0:00:38.1]}
29... Qe6 {[%clk 0:00:07.5]} 30. Bf2 {[%clk 0:00:35.9]} 30... h4 {[%clk
0:00:07.2]} 31. c5 {[%clk 0:00:33.6]} 31... Qa2 {[%clk 0:00:06.4]} 32. Qc4
{[%clk 0:00:23.8]} 32... Qb1+ {[%clk 0:00:04.5]} 33. Rc1 {[%clk 0:00:24.4]}
33... Qb2 {[%clk 0:00:02.1]} 34. c6 {[%clk 0:00:23]} 34... Kh6 {[%clk 0:00:03]}
35. f4 {[%clk 0:00:18.4]} 35... e6 {[%clk 0:00:03.1]} 36. e4 {[%clk 0:00:16.2]}
36... Kg7 {[%clk 0:00:03.5]} 37. d5 {[%clk 0:00:15.3]} 37... exd5 {[%clk
0:00:03.5]} 38. exd5 {[%clk 0:00:16.2]} 38... Rd8 {[%clk 0:00:03.9]} 39. c7
{[%clk 0:00:16.3]} 39... Rxd5 {[%clk 0:00:04.1]} 40. c8=Q {[%clk 0:00:16]} 40...
Rd2 {[%clk 0:00:04.9]} 41. Q8c7 {[%clk 0:00:11.1]} 41... Rxf2 {[%clk 0:00:03.6]}
42. Q4xf7+ {[%clk 0:00:10.3]} 1-0

[Event "Late-Titled-Tuesday-Blitz-October-03-2023"]
[Site "Chess.com"]
[Date "2023.10.03"]
[Round "5"]
[White "I_am_Javi"]
[Black "aistrel"]
[Result "1/2-1/2"]
[WhiteElo "2747"]
[BlackElo "2535"]
[TimeControl "180+1"]
[EndTime "14:54:03 PDT"]
[Termination "Game drawn by repetition"]

1. e4 {[%clk 0:03:00.9]} 1... c6 {[%clk 0:02:53]} 2. d4 {[%clk 0:02:58.9]} 2...
d5 {[%clk 0:02:53.9]} 3. e5 {[%clk 0:02:58]} 3... Bf5 {[%clk 0:02:53.8]} 4. c4
{[%clk 0:02:58.1]} 4... e6 {[%clk 0:02:54]} 5. Nc3 {[%clk 0:02:56.9]} 5... Bb4
{[%clk 0:02:53]} 6. Nf3 {[%clk 0:02:56.5]} 6... Ne7 {[%clk 0:02:52.8]} 7. a3
{[%clk 0:02:49.5]} 7... Bxc3+ {[%clk 0:02:51.8]} 8. bxc3 {[%clk 0:02:50.4]} 8...
O-O {[%clk 0:02:47.2]} 9. Nh4 {[%clk 0:02:46.4]} 9... c5 {[%clk 0:02:38.6]} 10.
Nxf5 {[%clk 0:01:45.2]} 10... Nxf5 {[%clk 0:02:38.6]} 11. Bd3 {[%clk 0:01:45]}
11... dxc4 {[%clk 0:02:31.6]} 12. Bxf5 {[%clk 0:01:44.4]} 12... exf5 {[%clk
0:02:32.1]} 13. d5 {[%clk 0:01:41.4]} 13... Nd7 {[%clk 0:02:12.9]} 14. f4 {[%clk
0:01:33.8]} 14... Nb6 {[%clk 0:02:05.9]} 15. d6 {[%clk 0:01:31.4]} 15... Qh4+
{[%clk 0:02:02.6]} 16. g3 {[%clk 0:01:28.9]} 16... Qh3 {[%clk 0:01:57.7]} 17.
Kf2 {[%clk 0:01:24.2]} 17... Rfe8 {[%clk 0:01:46.8]} 18. Be3 {[%clk 0:00:32.5]}
18... f6 {[%clk 0:01:46.6]} 19. Bxc5 {[%clk 0:00:31.7]} 19... fxe5 {[%clk
0:01:20.3]} 20. Bxb6 {[%clk 0:00:25.4]} 20... axb6 {[%clk 0:00:59.9]} 21. Qd5+
{[%clk 0:00:22.7]} 21... Kh8 {[%clk 0:00:58.4]} 22. fxe5 {[%clk 0:00:12.3]}
22... f4 {[%clk 0:00:49.1]} 23. gxf4 {[%clk 0:00:13.2]} 23... Rf8 {[%clk
0:00:49.1]} 24. Qf3 {[%clk 0:00:11.8]} 24... Qh4+ {[%clk 0:00:49]} 25. Ke3
{[%clk 0:00:12]} 25... g5 {[%clk 0:00:48.2]} 26. f5 {[%clk 0:00:10.4]} 26...
Rae8 {[%clk 0:00:46.6]} 27. e6 {[%clk 0:00:04.4]} 27... Rxe6+ {[%clk 0:00:46.4]}
28. fxe6 {[%clk 0:00:05.3]} 28... Rxf3+ {[%clk 0:00:45.9]} 29. Kxf3 {[%clk
0:00:06.2]} 29... Qh3+ {[%clk 0:00:46.8]} 30. Kf2 {[%clk 0:00:06.2]} 30... Qf5+
{[%clk 0:00:46.4]} 31. Kg2 {[%clk 0:00:06.1]} 31... Qg4+ {[%clk 0:00:46]} 32.
Kf2 {[%clk 0:00:06.5]} 32... Qf4+ {[%clk 0:00:46.4]} 33. Ke2 {[%clk 0:00:07.2]}
33... Qe5+ {[%clk 0:00:45.5]} 34. Kf2 {[%clk 0:00:08]} 34... Qf4+ {[%clk
0:00:44.8]} 35. Kg2 {[%clk 0:00:08.4]} 35... Qg4+ {[%clk 0:00:44.1]} 36. Kf2
{[%clk 0:00:07.6]} 36... Qf5+ {[%clk 0:00:40.3]} 37. Kg3 {[%clk 0:00:07.2]}
37... Qf4+ {[%clk 0:00:40.7]} 38. Kg2 {[%clk 0:00:07.3]} 38... Qd2+ {[%clk
0:00:37.9]} 39. Kf3 {[%clk 0:00:06.7]} 39... Qxc3+ {[%clk 0:00:36.8]} 40. Kg4
{[%clk 0:00:06.4]} 40... Qd4+ {[%clk 0:00:32.9]} 41. Kxg5 {[%clk 0:00:07]} 41...
Qe5+ {[%clk 0:00:33.2]} 42. Kh4 {[%clk 0:00:07]} 42... Qf4+ {[%clk 0:00:31.3]}
43. Kh3 {[%clk 0:00:07.2]} 43... Qf3+ {[%clk 0:00:30.9]} 44. Kh4 {[%clk
0:00:07.7]} 44... Qf4+ {[%clk 0:00:30.9]} 45. Kh5 {[%clk 0:00:04.8]} 45... Qf5+
{[%clk 0:00:20.9]} 46. Kh4 {[%clk 0:00:04.5]} 46... Qf4+ {[%clk 0:00:16.9]}
1/2-1/2

[Event "Late-Titled-Tuesday-Blitz-October-03-2023"]
[Site "Chess.com"]
[Date "2023.10.03"]
[Round "5"]
[White "Herman-NY"]
[Black "IPAchess"]
[Result "1-0"]
[WhiteElo "2516"]
[BlackElo "2328"]
[TimeControl "180+1"]
[EndTime "14:54:15 PDT"]
[Termination "Herman-NY won on time"]

1. e4 {[%clk 0:03:00.9]} 1... e5 {[%clk 0:02:50.8]} 2. Nf3 {[%clk 0:03:00.8]}
2... Nc6 {[%clk 0:02:51.2]} 3. Bb5 {[%clk 0:03:01.4]} 3... a6 {[%clk 0:02:51.8]}
4. Ba4 {[%clk 0:03:01.9]} 4... Nf6 {[%clk 0:02:52.4]} 5. O-O {[%clk 0:03:02.2]}
5... d6 {[%clk 0:02:52.3]} 6. Re1 {[%clk 0:02:56.4]} 6... Bd7 {[%clk 0:02:47.4]}
7. c3 {[%clk 0:02:56]} 7... g6 {[%clk 0:02:38.8]} 8. d4 {[%clk 0:02:53.6]} 8...
Bg7 {[%clk 0:02:39.3]} 9. h3 {[%clk 0:02:48.3]} 9... O-O {[%clk 0:02:39.6]} 10.
Nbd2 {[%clk 0:02:43.6]} 10... Re8 {[%clk 0:02:30.9]} 11. Bc2 {[%clk 0:02:37]}
11... a5 {[%clk 0:02:30.4]} 12. Nf1 {[%clk 0:02:29.7]} 12... a4 {[%clk
0:02:24.5]} 13. a3 {[%clk 0:02:29.3]} 13... b5 {[%clk 0:02:17.6]} 14. Ng3 {[%clk
0:02:28.5]} 14... Na5 {[%clk 0:02:14.2]} 15. Rb1 {[%clk 0:01:49.9]} 15... Qc8
{[%clk 0:02:12.3]} 16. Kh2 {[%clk 0:01:48.8]} 16... c5 {[%clk 0:02:11.6]} 17. d5
{[%clk 0:01:42.1]} 17... Nc4 {[%clk 0:02:07.7]} 18. Bd3 {[%clk 0:01:35.5]} 18...
Nb6 {[%clk 0:02:02.7]} 19. Bd2 {[%clk 0:01:26.6]} 19... Nc4 {[%clk 0:01:35.5]}
20. Bxc4 {[%clk 0:01:14.5]} 20... bxc4 {[%clk 0:01:36.4]} 21. Qc2 {[%clk
0:01:13.4]} 21... Qb7 {[%clk 0:01:20.6]} 22. Rbd1 {[%clk 0:01:10.6]} 22... Bc8
{[%clk 0:01:20.1]} 23. Bc1 {[%clk 0:01:10.1]} 23... Nd7 {[%clk 0:01:20.2]} 24.
Qe2 {[%clk 0:00:58.9]} 24... Nb6 {[%clk 0:01:18.9]} 25. Nd2 {[%clk 0:00:40.7]}
25... Qa6 {[%clk 0:01:10.9]} 26. Ndf1 {[%clk 0:00:34.5]} 26... Rf8 {[%clk
0:01:10.6]} 27. Ne3 {[%clk 0:00:31.7]} 27... f5 {[%clk 0:01:05.5]} 28. exf5
{[%clk 0:00:31.9]} 28... gxf5 {[%clk 0:01:06.4]} 29. Nh5 {[%clk 0:00:32.5]}
29... Ra7 {[%clk 0:00:59.9]} 30. f4 {[%clk 0:00:30.7]} 30... e4 {[%clk
0:00:49.5]} 31. g4 {[%clk 0:00:26.9]} 31... Kh8 {[%clk 0:00:33.9]} 32. Rg1
{[%clk 0:00:26.5]} 32... Qb7 {[%clk 0:00:27.3]} 33. gxf5 {[%clk 0:00:20]} 33...
Bf6 {[%clk 0:00:22.9]} 34. Qg4 {[%clk 0:00:15]} 34... Qf7 {[%clk 0:00:20.4]} 35.
Rg3 {[%clk 0:00:12]} 35... Bd7 {[%clk 0:00:14]} 36. Rdg1 {[%clk 0:00:12]} 36...
Raa8 {[%clk 0:00:14.5]} 37. Bd2 {[%clk 0:00:08.5]} 37... Bd8 {[%clk 0:00:05.3]}
38. Be1 {[%clk 0:00:04.8]} 38... Bf6 {[%clk 0:00:05]} 39. R3g2 {[%clk
0:00:04.9]} 39... Bd8 {[%clk 0:00:05.1]} 40. Bh4 {[%clk 0:00:04.3]} 40... Bxh4
{[%clk 0:00:05.7]} 41. Qxh4 {[%clk 0:00:05.2]} 41... Bxf5 {[%clk 0:00:05.1]} 42.
Rg7 {[%clk 0:00:05.5]} 42... Qe8 {[%clk 0:00:02.9]} 43. Qg5 {[%clk 0:00:05.5]}
43... Ra7 {[%clk 0:00:02.9]} 44. Nxf5 {[%clk 0:00:05.5]} 44... Raf7 {[%clk
0:00:01.7]} 45. Qh6 {[%clk 0:00:03.7]} 1-0

[Event "Late-Titled-Tuesday-Blitz-October-03-2023"]
[Site "Chess.com"]
[Date "2023.10.03"]
[Round "5"]
[White "MarkoPe"]
[Black "Anton_Demchenko"]
[Result "0-1"]
[WhiteElo "2342"]
[BlackElo "2898"]
[TimeControl "180+1"]
[EndTime "14:54:15 PDT"]
[Termination "Anton_Demchenko won on time"]

1. d4 {[%clk 0:02:42.4]} 1... d5 {[%clk 0:03:00.1]} 2. g3 {[%clk 0:02:42.4]}
2... Nf6 {[%clk 0:02:59.6]} 3. Bg2 {[%clk 0:02:41.6]} 3... c6 {[%clk 0:02:57.9]}
4. Nf3 {[%clk 0:02:42]} 4... Bf5 {[%clk 0:02:55.8]} 5. O-O {[%clk 0:02:42.3]}
5... e6 {[%clk 0:02:55.2]} 6. c4 {[%clk 0:02:42.7]} 6... Nbd7 {[%clk 0:02:54.9]}
7. Nc3 {[%clk 0:02:43.1]} 7... h6 {[%clk 0:02:53.1]} 8. b3 {[%clk 0:02:43.5]}
8... Bb4 {[%clk 0:02:52.5]} 9. Bb2 {[%clk 0:02:43.6]} 9... O-O {[%clk
0:02:52.2]} 10. a3 {[%clk 0:02:42.9]} 10... Be7 {[%clk 0:02:48.8]} 11. Re1
{[%clk 0:02:42.6]} 11... a5 {[%clk 0:02:42.9]} 12. Ne5 {[%clk 0:02:40.3]} 12...
Bh7 {[%clk 0:02:31.9]} 13. e4 {[%clk 0:02:35.7]} 13... dxc4 {[%clk 0:02:17.5]}
14. Nxc4 {[%clk 0:02:19.2]} 14... b5 {[%clk 0:02:17.7]} 15. Ne5 {[%clk
0:02:09.9]} 15... Nxe5 {[%clk 0:02:16.5]} 16. dxe5 {[%clk 0:02:10.1]} 16... Nd7
{[%clk 0:02:17.3]} 17. Ne2 {[%clk 0:02:04.2]} 17... Qc7 {[%clk 0:02:13.1]} 18.
Rc1 {[%clk 0:01:54.5]} 18... Nxe5 {[%clk 0:01:43.2]} 19. Nd4 {[%clk 0:01:40.3]}
19... Qb6 {[%clk 0:01:26.8]} 20. f4 {[%clk 0:01:12.2]} 20... c5 {[%clk
0:01:23.5]} 21. fxe5 {[%clk 0:01:07.4]} 21... cxd4 {[%clk 0:01:23.1]} 22. Bxd4
{[%clk 0:01:07.6]} 22... Qb7 {[%clk 0:01:16]} 23. Bc5 {[%clk 0:00:56.2]} 23...
Rfd8 {[%clk 0:01:15.9]} 24. Qe2 {[%clk 0:00:49.7]} 24... b4 {[%clk 0:01:06.9]}
25. a4 {[%clk 0:00:44.2]} 25... Bxc5+ {[%clk 0:01:04]} 26. Rxc5 {[%clk
0:00:43.9]} 26... Qa7 {[%clk 0:01:04.9]} 27. Qf2 {[%clk 0:00:44]} 27... Bg6
{[%clk 0:00:48.1]} 28. h4 {[%clk 0:00:42.5]} 28... Bh5 {[%clk 0:00:43.7]} 29.
Bh3 {[%clk 0:00:35.3]} 29... Rd3 {[%clk 0:00:33.6]} 30. Rec1 {[%clk 0:00:21.6]}
30... Rad8 {[%clk 0:00:30]} 31. Bf1 {[%clk 0:00:14.8]} 31... Rf3 {[%clk
0:00:23]} 32. Qe1 {[%clk 0:00:08.2]} 32... Rxb3 {[%clk 0:00:18.9]} 33. Kh2
{[%clk 0:00:07.6]} 33... Bg4 {[%clk 0:00:17.5]} 34. Rc8 {[%clk 0:00:04.3]} 34...
Rb2+ {[%clk 0:00:15.1]} 35. R1c2 {[%clk 0:00:02.1]} 35... Rxc2+ {[%clk
0:00:14.8]} 36. Rxc2 {[%clk 0:00:02.7]} 36... Qd4 {[%clk 0:00:15.2]} 37. Rc7
{[%clk 0:00:01.5]} 37... Qb2+ {[%clk 0:00:13.5]} 38. Kh1 {[%clk 0:00:01.1]}
38... Bf3+ {[%clk 0:00:12.7]} 39. Kg1 {[%clk 0:00:01.6]} 39... Qxe5 {[%clk
0:00:13]} 40. Qc1 {[%clk 0:00:01.2]} 40... Qd4+ {[%clk 0:00:13.3]} 41. Kh2
{[%clk 0:00:01.2]} 41... Qf2+ {[%clk 0:00:13.7]} 42. Kh3 {[%clk 0:00:01.3]}
42... h5 {[%clk 0:00:14.4]} 0-1